bitfinex-derivatives/quotes_SOLF0:USTF0_20220109
["timestamp","ask_amount","ask_price","bid_price","bid_amount"]
[1641747365716,42.51814135,142.39,142.3,2.65871076]
[1641747365916,5.61903736,142.38,142.3,2.65871076]
[1641747366117,3.0757365,142.34,142.3,2.65871076]
[1641747366416,14.85335135,142.39,142.33,27.66479]
[1641747366617,14.85335135,142.39,142.33,36.89379]
[1641747367015,5.61779653,142.41,142.33,36.89379]
[1641747367415,5.61852318,142.39,142.33,9.229]
[1641747368416,5.61852318,142.39,142.33,36.89379]
[1641747370219,5.61856709,142.39,142.33,36.89379]
[1641747370622,14.85335135,142.41,142.33,36.89379]
[1641747371822,5.61860699,142.39,142.33,36.89379]
[1641747372023,4.0,142.36,142.3,14.85335135]
[1641747372222,4.0,142.33,142.3,14.85335135]
[1641747372422,5.6217401,142.31,142.3,14.85335135]
[1641747373422,5.6217401,142.31,142.25,2.65819156]
[1641747373824,42.51814135,142.36,142.25,2.65819156]
[1641747374022,49.26194494,142.36,142.25,12.14819156]
[1641747374223,5.62088545,142.33,142.25,12.14819156]
[1641747374424,5.62088545,142.33,142.27,27.66479]
[1641747374625,21.59715494,142.36,142.27,27.66479]
[1641747375028,5.62076075,142.33,142.27,27.66479]
[1641747375426,11.24189509,142.33,142.28,2.65819156]
[1641747375725,5.62113434,142.33,142.28,2.65819156]
[1641747375925,5.62113434,142.33,142.28,10.63219156]
[1641747377325,5.62113434,142.33,142.28,7.974]
[1641747378325,49.26141616,142.37,142.28,7.974]
[1641747378526,4.0,142.35,142.28,7.974]
[1641747378725,5.62051929,142.34,142.28,7.974]
[1641747378927,5.62051929,142.34,142.26,3.99254307]
[1641747379126,9.05441144,142.36,142.29,2.65767021]
[1641747379325,9.05441144,142.36,142.29,9.12767021]
[1641747379525,2.31090783,142.36,142.29,9.12767021]
[1641747379727,5.61932206,142.37,142.29,9.12767021]
[1641747379925,5.61932206,142.37,142.3,2.65767021]
[1641747380527,5.61975304,142.36,142.3,30.32246021]
[1641747380830,5.61975304,142.36,142.3,2.65767021]
[1641747382231,14.85335135,142.39,142.3,2.65767021]
[1641747382630,6.74114294,142.41,142.32,27.66479]
[1641747382831,6.74114294,142.41,142.32,35.57779]
[1641747383232,5.61864231,142.39,142.32,35.57779]
[1641747383431,5.61943144,142.37,142.32,35.57779]
[1641747383631,5.61943144,142.37,142.33,2.65767021]
[1641747384231,49.25888232,142.42,142.32,7.913]
[1641747384431,14.85335135,142.41,142.32,7.913]
[1641747384632,14.85335135,142.41,142.34,27.66479]
[1641747385431,2.31064027,142.41,142.34,27.66479]
[1641747385633,2.15240247,142.35,142.34,27.66479]
[1641747386438,2.15240247,142.35,142.32,7.913]
[1641747386640,2.15240247,142.35,142.31,3.99106739]
[1641747387040,5.62058806,142.34,142.31,3.99106739]
[1641747388041,5.62114511,142.32,142.31,3.99106739]
[1641747388441,5.62114511,142.32,142.31,3.36136739]
[1641747389643,5.62114511,142.32,142.26,25.25173308]
[1641747390647,5.62114511,142.32,142.27,27.66479]
[1641747390846,5.62114511,142.32,142.27,36.63579]
[1641747391049,5.62114511,142.32,142.27,8.971]
[1641747391246,5.62151823,142.32,142.27,8.971]
[1641747391446,5.62151823,142.32,142.28,2.65775037]
[1641747392547,5.62151823,142.32,142.28,37.49254037]
[1641747392948,5.62151823,142.32,142.28,34.83479]
[1641747393149,8.89592996,142.35,142.28,34.83479]
[1641747393750,8.89592996,142.35,142.29,2.65775037]
[1641747394250,2.27826217,142.31,142.29,2.65775037]
[1641747396553,5.61936266,142.37,142.3,27.66479]
[1641747397556,5.61936266,142.37,142.31,2.65775037]
[1641747397752,6.74221304,142.39,142.31,9.18175037]
[1641747398253,14.85335135,142.42,142.32,7.02222534]
[1641747398453,14.85335135,142.42,142.32,9.67997571]
[1641747398654,14.85335135,142.42,142.36,27.66479]
[1641747398855,14.85335135,142.42,142.36,36.40679]
[1641747399055,14.85335135,142.42,142.36,8.742]
[1641747399256,20.4708242,142.42,142.36,8.742]
[1641747400157,20.4708242,142.42,142.31,6.524]
[1641747400158,7.92864553,142.42,142.33,25.25462052]
[1641747400557,7.92864553,142.42,142.39,27.66479]
[1641747400955,5.61747285,142.42,142.39,27.66479]
[1641747405259,5.61747285,142.42,142.36,27.66479]
[1641747405459,5.61812561,142.4,142.36,27.66479]
[1641747405659,5.61812561,142.4,142.33,18.84361083]
[1641747406061,11.23639683,142.4,142.33,3.99025948]
[1641747406360,11.23639683,142.4,142.3,83.52886306]
[1641747406761,11.23639683,142.4,142.35,27.66479]
[1641747407160,11.23639683,142.4,142.35,36.29279]
[1641747407860,5.61921018,142.37,142.35,36.29279]
[1641747410165,5.61812561,142.4,142.35,36.29279]
[1641747410564,5.61808698,142.4,142.35,36.29279]
[1641747410763,5.61808698,142.4,142.35,63.95758]
[1641747411263,5.61808698,142.4,142.35,36.29279]
[1641747411465,5.61949574,142.37,142.34,3.99071243]
[1641747413767,1.65724558,142.36,142.34,3.99071243]
[1641747413967,1.65724558,142.36,142.32,27.66479]
[1641747414767,4.558e-05,142.36,142.35,27.66479]
[1641747415068,4.558e-05,142.36,142.35,35.01879]
[1641747415267,4.558e-05,142.36,142.35,39.01879]
[1641747415467,4.558e-05,142.36,142.35,37.67340521]
[1641747416468,4.0,142.42,142.35,37.67340521]
[1641747416668,5.61801964,142.4,142.35,37.67340521]
[1641747417167,5.61801964,142.4,142.35,35.01879]
[1641747417569,5.61801964,142.4,142.35,27.66479]
[1641747417768,5.61911155,142.38,142.35,27.66479]
[1641747418169,4.0,142.42,142.35,27.66479]
[1641747418769,25.59353456,142.43,142.35,55.32958]
[1641747419169,10.74018321,142.43,142.35,55.32958]
[1641747420372,6.74018321,142.43,142.35,62.35007986]
[1641747420569,14.85335135,142.45,142.39,11.01877522]
[1641747420770,39.66772196,142.49,142.44,55.32958]
[1641747420970,39.66772196,142.49,142.44,61.88558]
[1641747421573,5.61418422,142.5,142.44,61.88558]
[1641747421771,9.61418422,142.5,142.44,61.88558]
[1641747421971,5.61516867,142.48,142.44,61.88558]
[1641747422774,5.61516867,142.48,142.44,6.556]
[1641747423171,2.30687168,142.47,142.44,6.556]
[1641747424776,5.61516867,142.48,142.46,55.32958]
[1641747427477,15.0734951,142.52,142.46,55.32958]
[1641747427681,39.66772196,142.54,142.46,59.32958]
[1641747427881,72.58994727,142.57,142.46,59.32958]
[1641747427882,39.66772196,142.56,142.46,59.32958]
[1641747428080,39.66772196,142.56,142.46,55.32958]
[1641747428281,39.66772196,142.56,142.46,59.32958]
[1641747428781,39.66772196,142.56,142.53,27.66479]
[1641747428981,2.30426808,142.56,142.53,36.90779]
[1641747429181,2.30426808,142.56,142.53,9.243]
[1641747429381,5.61234239,142.55,142.45,8.76957458]
[1641747429582,5.61234239,142.55,142.44,6.556]
[1641747429783,5.61234239,142.55,142.47,4.0]
[1641747430083,5.61234239,142.55,142.49,4.0]
[1641747430284,2.30426808,142.56,142.48,4.0]
[1641747430682,6.7337066,142.57,142.47,13.333]
[1641747430884,6.7337066,142.57,142.53,27.66479]
[1641747431086,6.7337066,142.57,142.53,37.05979]
[1641747431286,87.43029,142.6,142.53,37.05979]
[1641747431486,39.66772196,142.61,142.53,41.05979]
[1641747431687,39.66772196,142.61,142.54,4.0]
[1641747431887,8.07793992,142.62,142.53,41.05979]
[1641747432186,5.6103062,142.6,142.53,37.05979]
[1641747433186,5.6103062,142.6,142.53,27.66479]
[1641747433386,1.15891053,142.55,142.53,27.66479]
[1641747433987,1.15891053,142.55,142.51,27.66479]
[1641747434788,1.15891053,142.55,142.51,55.32958]
[1641747436892,1.15891053,142.55,142.51,27.66479]
[1641747437392,5.61112793,142.58,142.51,27.66479]
[1641747437792,1.15787453,142.54,142.51,27.66479]
[1641747438193,1.15787453,142.54,142.47,7.01483638]
[1641747438592,1.15787453,142.54,142.44,153.00494551]
[1641747438593,6.77066611,142.54,142.44,127.96166679]
[1641747438794,6.77066611,142.54,142.44,64.80856679]
[1641747438992,5.6135406,142.52,142.46,27.66479]
[1641747439192,11.7245406,142.52,142.46,27.66479]
[1641747440192,6.111,142.52,142.46,27.66479]
[1641747440393,1.15787453,142.54,142.46,27.66479]
[1641747440993,1.15787453,142.54,142.46,31.66479]
[1641747441192,1.15787453,142.54,142.47,4.0]
[1641747441793,6.73477526,142.55,142.47,4.0]
[1641747442193,6.73477526,142.55,142.46,31.66479]
[1641747442794,6.73477526,142.55,142.47,4.0]
[1641747442993,6.73477526,142.55,142.47,9.742]
[1641747443193,6.73477526,142.55,142.48,4.0]
[1641747443396,6.73477526,142.55,142.47,5.742]
[1641747443397,1.15818299,142.57,142.5,4.0]
[1641747443596,1.15818299,142.57,142.51,4.0]
[1641747443795,1.15818299,142.57,142.5,8.942]
[1641747445099,1.15818299,142.57,142.54,27.66479]
[1641747445298,1.15818299,142.57,142.54,38.94879]
[1641747445498,1.15818299,142.57,142.54,34.94879]
[1641747445700,27.66479,142.62,142.54,34.94879]
[1641747445901,27.66479,142.62,142.54,7.284]
[1641747446099,5.60983991,142.61,142.54,7.284]
[1641747446299,5.60983991,142.61,142.55,4.0]
[1641747446500,27.66479,142.62,142.54,7.284]
[1641747447403,27.66479,142.62,142.56,4.0]
[1641747447603,27.66479,142.62,142.54,11.284]
[1641747447805,7.01459035,142.63,142.54,7.284]
[1641747448003,7.01459035,142.63,142.54,11.284]
[1641747448404,7.01459035,142.63,142.54,7.284]
[1641747448603,7.01459035,142.63,142.53,4.0]
[1641747448803,7.01459035,142.63,142.52,59.32958]
[1641747449006,7.01459035,142.63,142.57,27.66479]
[1641747449307,11.01459035,142.63,142.57,27.66479]
[1641747449505,5.61003829,142.61,142.52,27.66479]
[1641747450108,5.61014228,142.6,142.52,27.66479]
[1641747450309,5.61135143,142.57,142.48,1.752]
[1641747450608,13.63035143,142.57,142.47,4.0]
[1641747451011,13.63035143,142.57,142.48,27.66479]
[1641747452509,4.0,142.54,142.48,27.66479]
[1641747453110,5.61224478,142.55,142.48,27.66479]
[1641747455015,5.61224478,142.55,142.49,3.98675639]
[1641747455414,5.6131214,142.53,142.49,3.98675639]
[1641747456915,6.73421835,142.56,142.49,3.98675639]
[1641747457115,6.73421835,142.56,142.49,10.28075639]
[1641747457616,2.30618933,142.55,142.49,10.28075639]
[1641747458817,2.30618933,142.55,142.49,6.294]
[1641747461021,2.30618933,142.55,142.53,27.66479]
[1641747461223,3.46556005,142.55,142.53,33.87379]
[1641747461526,1.15937072,142.55,142.53,33.87379]
[1641747462927,14.83748525,142.59,142.53,33.87379]
[1641747463924,17.14289503,142.62,142.53,33.87379]
[1641747464226,17.14289503,142.62,142.53,37.87379]
[1641747464424,17.14289503,142.62,142.53,33.87379]
[1641747464823,14.83748525,142.61,142.53,33.87379]
[1641747465726,1.15887245,142.54,142.53,33.87379]
[1641747465924,1.15887245,142.54,142.53,37.87379]
[1641747466125,17.14289503,142.62,142.53,37.87379]
[1641747466325,17.14289503,142.62,142.54,4.0]
[1641747466527,14.83748525,142.62,142.53,33.87379]
[1641747466729,14.83748525,142.63,142.53,36.52723238]
[1641747467126,14.83748525,142.63,142.56,27.66479]
[1641747467527,14.83748525,142.62,142.56,27.66479]
[1641747467727,18.83748525,142.62,142.56,27.66479]
[1641747467926,14.83748525,142.62,142.53,27.66479]
[1641747468327,4.0,142.63,142.53,27.66479]
[1641747468328,17.14189416,142.61,142.53,27.66479]
[1641747468927,22.75179791,142.61,142.53,27.66479]
[1641747469128,5.60990375,142.61,142.53,27.66479]
[1641747469829,2.30440891,142.6,142.53,27.66479]
[1641747470929,2.30440891,142.6,142.54,4.0]
[1641747471132,2.30440891,142.6,142.56,27.66479]
[1641747472332,2.30440891,142.61,142.56,27.66479]
[1641747472534,2.30440891,142.61,142.58,4.0]
[1641747472734,2.30440891,142.61,142.58,6.053]
[1641747473134,27.66479,142.65,142.59,27.66479]
[1641747473333,27.66479,142.65,142.62,4.0]
[1641747473533,27.66479,142.65,142.62,10.224]
[1641747473733,14.86379253,142.66,142.62,6.224]
[1641747473934,14.86379253,142.66,142.62,7.976]
[1641747474133,14.86379253,142.66,142.62,6.224]
[1641747474334,42.52858253,142.69,142.62,6.224]
[1641747474733,42.52858253,142.69,142.63,1.752]
[1641747474933,42.52858253,142.69,142.62,11.976]
[1641747475134,14.86379253,142.69,142.66,4.0]
[1641747475334,14.86379253,142.71,142.67,4.0]
[1641747475636,39.66772196,142.74,142.69,4.0]
[1641747475835,27.49864757,142.78,142.73,11.00182047]
[1641747476035,27.49864757,142.78,142.74,1.75]
[1641747476234,97.49279393,142.82,142.74,1.75]
[1641747476436,4.0,142.84,142.74,1.75]
[1641747476638,58.2105,142.86,142.75,4.0]
[1641747476838,58.2105,142.86,142.78,4.0]
[1641747477139,11.61168542,142.87,142.84,27.66479]
[1641747477336,11.61168542,142.87,142.84,34.80279]
[1641747477536,108.4946144,142.89,142.84,34.80279]
[1641747477737,4.0,142.88,142.84,34.80279]
[1641747477936,4.0,142.86,142.84,34.80279]
[1641747478340,4.0,142.85,142.84,9e-05]
[1641747478637,7.00304633,142.87,142.84,9e-05]
[1641747479038,2.27976552,142.85,142.84,9e-05]
[1641747479838,4.0,142.85,142.84,9e-05]
[1641747480040,11.00231076,142.88,142.84,9e-05]
[1641747480338,4.0,142.87,142.84,9e-05]
[1641747480538,4.0,142.86,142.78,8.535]
[1641747480938,11.00231076,142.88,142.78,8.535]
[1641747481139,4.0,142.87,142.78,8.535]
[1641747481438,9.5999898,142.86,142.78,8.535]
[1641747481638,5.5999898,142.86,142.78,8.535]
[1641747481838,11.00231076,142.88,142.78,8.535]
[1641747482038,7.00231076,142.88,142.78,8.535]
[1641747482238,7.00231076,142.88,142.78,6.369]
[1641747482439,7.00231076,142.88,142.78,8.119]
[1641747482639,61.6787,142.9,142.78,8.119]
[1641747482840,7.00206561,142.89,142.78,6.369]
[1641747483039,4.0,142.83,142.78,6.369]
[1641747483238,31.66479,142.85,142.78,6.369]
[1641747483438,37.26525088,142.85,142.78,6.369]
[1641747483641,5.60046088,142.85,142.78,6.369]
[1641747484039,9.60046088,142.85,142.78,6.369]
[1641747484239,4.0,142.84,142.78,6.369]
[1641747484439,9.60056677,142.85,142.78,6.369]
[1641747484740,5.60056677,142.85,142.78,6.369]
[1641747484941,4.0,142.83,142.78,6.369]
[1641747485140,31.66479,142.8,142.72,27.66479]
[1641747485438,27.66479,142.8,142.72,27.66479]
[1641747485841,27.66479,142.8,142.7,27.66479]
[1641747488043,16.60794461,142.81,142.7,27.66479]
[1641747488044,12.60794461,142.81,142.7,27.66479]
[1641747488251,6.72073828,142.85,142.77,4.0]
[1641747488441,80.74202512,142.9,142.77,10.994]
[1641747488643,80.74202512,142.9,142.77,6.994]
[1641747488845,4.0,142.89,142.77,10.994]
[1641747489246,4.0,142.88,142.77,34.65879]
[1641747489645,38.66685561,142.89,142.77,38.65879]
[1641747489847,38.66685561,142.89,142.77,34.65879]
[1641747490347,4.0,142.88,142.77,34.65879]
[1641747490748,0.79623492,142.79,142.77,34.65879]
[1641747491148,0.79623492,142.79,142.77,62.32358]
[1641747493949,0.79623492,142.79,142.77,34.65879]
[1641747494950,5.60104007,142.84,142.77,6.994]
[1641747495150,5.60104007,142.84,142.73,59.7118]
[1641747495351,33.26583007,142.84,142.73,87.37659]
[1641747495559,5.60155264,142.82,142.73,91.37659]
[1641747495764,64.41969103,142.87,142.78,4.0]
[1641747495958,64.41969103,142.87,142.78,6.417]
[1641747497062,0.79593059,142.87,142.78,6.417]
[1641747497262,27.66479,142.86,142.79,1.75]
[1641747497463,0.79593059,142.87,142.79,1.75]
[1641747497863,0.79593059,142.87,142.79,5.75]
[1641747498064,0.79593059,142.87,142.79,1.75]
[1641747498363,0.79593059,142.87,142.79,5.75]
[1641747498862,0.79593059,142.87,142.8,4.0]
[1641747499062,27.66479,142.89,142.83,4.0]
[1641747499363,27.66479,142.89,142.83,40.98979]
[1641747499562,27.66479,142.89,142.84,1.749]
[1641747499766,39.13943433,142.95,142.85,10.99618708]
[1641747499966,39.13943433,142.95,142.88,4.0]
[1641747500167,161.26973433,142.98,142.88,12.938]
[1641747500368,100.74783433,142.98,142.88,8.938]
[1641747500969,104.74783433,142.98,142.88,10.687]
[1641747501169,100.74783433,142.98,142.88,10.687]
[1641747501372,2.27837705,142.97,142.91,27.66479]
[1641747501569,2.27837705,142.97,142.91,36.90579]
[1641747501968,2.27837705,142.97,142.93,4.0]
[1641747502572,2.27837705,142.98,142.93,4.0]
[1641747506176,2.27837705,142.98,142.91,9.241]
[1641747506476,17.04470027,142.98,142.91,9.241]
[1641747506675,17.04470027,142.98,142.88,8.938]
[1641747506878,17.04470027,142.98,142.86,10.99545296]
[1641747507276,14.76632322,142.97,142.86,6.99545296]
[1641747507477,14.76632322,142.97,142.88,27.66479]
[1641747507677,14.76632322,142.97,142.89,1.749]
[1641747507878,14.76632322,142.97,142.91,4.0]
[1641747508178,14.76632322,142.97,142.91,7.767]
[1641747508877,2.27837705,142.98,142.91,7.767]
[1641747509478,7.705e-05,142.98,142.96,4.0]
[1641747509679,14.76632322,143.0,142.97,1.748]
[1641747509879,14.76632322,143.0,142.96,8.159]
[1641747510083,14.76632322,143.0,142.96,6.411]
[1641747510779,39.13943433,143.04,142.96,6.411]
[1641747510780,5.59304818,143.04,142.96,6.411]
[1641747510982,4.0,143.03,142.96,6.411]
[1641747511380,31.66479,143.03,142.96,34.07579]
[1641747511580,27.66479,143.03,142.96,34.07579]
[1641747511980,27.66479,143.03,142.96,6.411]
[1641747512180,27.66479,143.03,142.93,27.66479]
[1641747512382,27.66479,143.03,142.93,29.41279]
[1641747512581,31.66479,143.03,142.93,29.41279]
[1641747512982,31.66479,143.03,142.93,27.66479]
[1641747513180,5.59458198,143.0,142.93,27.66479]
[1641747513584,38.3767235,143.03,142.93,27.66479]
[1641747513781,4.0,143.02,142.93,27.66479]
[1641747513981,4.0,143.01,142.93,27.66479]
[1641747514181,96.0846235,143.03,142.93,27.66479]
[1641747514381,96.0846235,143.03,142.93,33.56179]
[1641747514682,0.79490102,142.99,142.93,33.56179]
[1641747517683,0.79490102,142.99,142.94,1.748]
[1641747517883,4.0,142.96,142.91,1.748]
[1641747518083,6.81,142.96,142.9,27.66479]
[1641747518286,6.81,142.96,142.86,61.3877]
[1641747518687,6.81,142.96,142.88,6.99447437]
[1641747518887,6.81,142.96,142.87,1.749]
[1641747519086,5.5949226,142.99,142.87,1.749]
[1641747519488,33.2597126,142.99,142.89,27.66479]
[1641747519887,37.2597126,142.99,142.89,27.66479]
[1641747520091,4.0,142.98,142.89,27.66479]
[1641747520889,4.0,142.98,142.87,27.66479]
[1641747521191,5.5960238,142.96,142.87,27.66479]
[1641747521390,27.66479,142.99,142.88,4.0]
[1641747521589,27.66479,142.99,142.91,27.66479]
[1641747521788,31.66479,142.99,142.91,36.03179]
[1641747521989,27.66479,142.99,142.91,36.03179]
[1641747522188,31.66479,142.99,142.91,36.03179]
[1641747522389,4.0,142.98,142.91,36.03179]
[1641747522588,4.0,142.98,142.91,8.367]
[1641747522989,0.79519673,142.95,142.87,31.64066284]
[1641747523591,0.79519673,142.95,142.87,3.97587284]
[1641747523794,6.84819673,142.95,142.87,3.97587284]
[1641747524391,0.79519673,142.95,142.87,3.97587284]
[1641747524592,4.0,142.92,142.87,3.97587284]
[1641747524793,6.99961502,142.94,142.87,3.97587284]
[1641747524993,12.59665072,142.94,142.87,3.97587284]
[1641747525194,4.0,142.92,142.87,3.97587284]
[1641747525394,12.59665072,142.94,142.87,3.97587284]
[1641747525596,5.5970357,142.94,142.87,12.75687284]
[1641747525795,14.76632322,142.93,142.87,12.75687284]
[1641747525994,4.0,142.9,142.87,12.75687284]
[1641747526396,4.0,142.9,142.87,8.781]
[1641747526595,4.0,142.9,142.83,57.07858]
[1641747526795,11.271,142.9,142.81,1.749]
[1641747526995,5.59929715,142.88,142.77,82.89902322]
[1641747527496,37.26408715,142.88,142.77,82.89902322]
[1641747527794,33.26408715,142.88,142.77,68.1327]
[1641747527994,82.19662322,142.9,142.78,8.74961502]
[1641747528195,74.92562322,142.9,142.78,8.74961502]
[1641747528696,60.1593,142.9,142.78,17.20161502]
[1641747529498,60.1593,142.9,142.83,27.66479]
[1641747529697,31.66479,142.91,142.83,27.66479]
[1641747529997,27.66479,142.91,142.83,27.66479]
[1641747530397,42.43111322,142.91,142.83,27.66479]
[1641747531599,0.79561572,142.87,142.83,27.66479]
[1641747533501,0.79561572,142.87,142.81,27.66479]
[1641747535705,5.59825744,142.91,142.81,55.32958]
[1641747535906,0.79551176,142.86,142.81,55.32958]
[1641747537707,0.79551176,142.86,142.81,59.32958]
[1641747537907,14.76632322,142.92,142.82,9.72743347]
[1641747538108,14.76632322,142.92,142.82,14.41543347]
[1641747538508,14.76632322,142.92,142.82,27.01401681]
[1641747538910,14.76632322,142.95,142.82,27.01401681]
[1641747539108,14.76632322,142.95,142.84,4.0]
[1641747539710,14.76632322,142.95,142.86,27.66479]
[1641747539909,18.76632322,142.95,142.86,27.66479]
[1641747540111,19.59090794,143.03,142.94,28.0]
[1641747540316,10.11090794,143.03,143.02,28.0]
[1641747540509,90.49279393,143.07,143.02,20.24956009]
[1641747540710,90.49279393,143.07,143.03,1.747]
[1641747541110,78.53279393,143.07,143.03,1.747]
[1641747541514,212.22523847,143.2,143.06,4.0]
[1641747541710,205.5213,143.2,143.1,59.32958]
[1641747541910,137.8503,143.2,143.11,4.0]
[1641747542110,137.8503,143.2,143.12,6.98543537]
[1641747542310,27.66479,143.22,143.12,6.98543537]
[1641747542711,27.66479,143.22,143.1,69.79999143]
[1641747542911,19.85219029,143.21,143.1,69.79999143]
[1641747543112,19.85219029,143.21,143.11,6.98592336]
[1641747543312,19.85219029,143.21,143.13,6.98494744]
[1641747543512,6.70207744,143.24,143.13,16.32894744]
[1641747543714,6.70207744,143.24,143.15,27.66479]
[1641747544518,6.70207744,143.24,143.11,9.342]
[1641747544719,19.85304794,143.23,143.11,9.342]
[1641747545619,19.85304794,143.23,143.05,27.66479]
[1641747545620,27.66479,143.12,143.05,27.66479]
[1641747545820,42.14776725,143.12,143.03,27.66479]
[1641747546220,5.5911853,143.09,143.03,27.66479]
[1641747547221,5.5911853,143.09,143.03,34.65486409]
[1641747547721,30.2339561,143.12,143.03,27.66479]
[1641747547921,30.2339561,143.12,143.04,14.52305903]
[1641747548122,30.2339561,143.12,143.04,21.51240028]
[1641747548324,8.893,143.12,143.04,6.98934125]
[1641747548622,66.5378,143.17,143.04,6.98934125]
[1641747548824,66.5378,143.17,143.04,10.98934125]
[1641747549023,66.5378,143.17,143.04,21.51240028]
[1641747549324,66.5378,143.17,143.06,4.0]
[1641747549724,66.5378,143.17,143.08,27.66479]
[1641747550025,64.5811,143.18,143.08,27.66479]
[1641747550624,64.5811,143.18,143.09,4.1051664]
[1641747551025,6.7054233,143.17,143.11,4.0]
[1641747551225,16.04372804,143.22,143.16,14.9798283]
[1641747551226,8.04372804,143.22,143.16,14.9798283]
[1641747551425,133.3205,143.32,143.17,1.745]
[1641747551926,133.3205,143.32,143.24,27.66479]
[1641747552125,19.84220032,143.31,143.24,27.66479]
[1641747552725,6.9827526,143.34,143.24,27.66479]
[1641747552925,6.9827526,143.34,143.24,33.45779]
[1641747553126,5.58203309,143.32,143.24,33.45779]
[1641747553926,5.58359898,143.28,143.24,33.45779]
[1641747554127,5.58359898,143.28,143.24,27.66479]
[1641747554427,5.58161516,143.33,143.24,27.66479]
[1641747555628,5.58316326,143.29,143.24,27.66479]
[1641747556527,5.58316326,143.29,143.23,27.66479]
[1641747560128,5.58422784,143.27,143.18,27.66479]
[1641747560931,5.5847872,143.25,143.18,27.66479]
[1641747561232,5.5847872,143.25,143.15,4.0]
[1641747561432,5.5847872,143.25,143.17,6.9829964]
[1641747561632,5.58422784,143.27,143.19,6.98226505]
[1641747561931,5.58422784,143.27,143.18,31.66479]
[1641747562134,5.58502552,143.25,143.18,27.66479]
[1641747562331,5.58502552,143.25,143.17,16.1699964]
[1641747562531,5.58545402,143.23,143.17,16.1699964]
[1641747562931,5.58545402,143.23,143.19,6.9820213]
[1641747563332,27.66479,143.28,143.19,6.9820213]
[1641747563531,5.58312483,143.29,143.19,6.9820213]
[1641747563732,5.58312483,143.29,143.21,27.66479]
[1641747563937,96.24189,143.3,143.24,4.0]
[1641747563938,68.5771,143.3,143.24,4.0]
[1641747564133,5.58232586,143.31,143.24,8.401]
[1641747564734,5.58340401,143.29,143.24,8.401]
[1641747565335,5.58340401,143.29,143.25,3.84513079]
[1641747565533,5.58223672,143.32,143.25,3.84513079]
[1641747566534,5.58332488,143.29,143.25,3.84513079]
[1641747567337,5.58332488,143.29,143.23,7.84513079]
[1641747567535,27.66479,143.34,143.23,7.84513079]
[1641747567536,5.58172579,143.33,143.25,4.0]
[1641747567737,5.58172579,143.33,143.26,6.97885407]
[1641747568135,5.58172579,143.33,143.26,10.82398486]
[1641747568336,21.34769453,143.34,143.26,3.84513079]
[1641747568738,21.34769453,143.34,143.27,3.84513079]
[1641747569138,6.69867,143.32,143.27,3.84513079]
[1641747569740,27.66479,143.29,143.27,3.84513079]
[1641747570542,27.66479,143.29,143.25,14.71789018]
[1641747571141,6.69867,143.32,143.26,6.97861056]
[1641747571341,6.69867,143.32,143.26,13.77461056]
[1641747571541,6.69867,143.32,143.27,14.71789018]
[1641747572441,6.69867,143.32,143.3,14.71789018]
[1641747573141,6.69867,143.32,143.29,14.71789018]
[1641747573741,5.58235753,143.31,143.29,14.71789018]
[1641747573940,5.58235753,143.31,143.27,42.5476761]
[1641747574141,5.58052151,143.36,143.3,4.0]
[1641747574341,5.58052151,143.36,143.29,15.50139325]
[1641747574742,5.5816064,143.33,143.29,8.524]
[1641747575141,5.582716,143.3,143.29,8.524]
[1641747575344,5.582716,143.3,143.26,65.40886326]
[1641747575943,5.582716,143.3,143.29,6.97690644]
[1641747576143,5.582716,143.3,143.29,13.35590644]
[1641747576344,5.583226,143.29,143.24,71.91450668]
[1641747576546,5.583226,143.29,143.24,40.91450668]
[1641747576744,47.66479,143.34,143.24,40.91450668]
[1641747576745,47.66479,143.34,143.25,18.68554081]
[1641747577142,27.66479,143.34,143.25,18.68554081]
[1641747577342,27.66479,143.34,143.25,28.01954081]
[1641747577543,27.66479,143.34,143.25,9.334]
[1641747577944,27.66479,143.3,143.25,9.334]
[1641747578945,27.66479,143.34,143.25,20.31236706]
[1641747579149,27.66479,143.34,143.25,16.31236706]
[1641747579547,27.66479,143.34,143.25,9.334]